[Event "Mitropa Cup Women 2019"]
[Site "Radenci"]
[Date "2019.05.31"]
[Round "5.14"]
[White "De Seroux, Camille"]
[Black "Newrkla, Katharina"]
[Result "1/2-1/2"]
[ECO "B46"]
[WhiteElo "2143"]
[BlackElo "2190"]
[Annotator "ChessBase"]
[PlyCount "123"]
[EventDate "2019.05.27"]
[EventType "team-tourn"]
[EventCountry "SLO"]
[SourceTitle "playchess.com"]
[Source "ChessBase"]
[SourceQuality "1"]
[WhiteTeam "Switzerland"]
[BlackTeam "Austria"]
[WhiteTeamCountry "SUI"]
[BlackTeamCountry "AUT"]
[TimeControl "40/5400+30:1800+30"]

1. e4 {[%emt 0:00:00]} c5 {[%emt 0:00:00]} 2. Nf3 {[%emt 0:00:00]} e6 {[%emt 0:00:00]} 3. d4 {[%emt 0:00:29]} cxd4 {[%emt 0:00:00]} 4. Nxd4 {[%emt 0:00:05]} Nc6 {[%emt 0:00:00]} 5. Nc3 {[%emt 0:00:18]} a6 {[%emt 0:00:01]} 6. Nxc6 {[%emt 0:00:40]} bxc6 {[%emt 0:00:05]} 7. Bd3 {[%emt 0:00:14]} d5 {[%emt 0:00:48]} 8. O-O {[%emt 0:00:32]} Nf6 {[%emt 0:00:12]} 9. Qe2 {[%emt 0:00:42]} Be7 {[%emt 0:02:09]} 10. e5 {[%emt 0:00:45]} Nd7 {[%emt 0:00:08]} 11. Na4 {[%emt 0:00:27]} c5 {[%emt 0:12:08]} 12. c4 {[%emt 0:02:04]} d4 {[%emt 0:00:10]} 13. b3 {[%emt 0:13:47]} Bb7 {[%emt 0:01:13]} 14. Bd2 {[%emt 0:03:03]} Qc7 {[%emt 0:07:31]} 15. f4 {[%emt 0:03:49]} g6 {[%emt 0:02:25]} 16. Rae1 {[%emt 0:04:49]} Qc6 {[%emt 0:06:15]} 17. Nb2 {[%emt 0:10:24]} a5 {[%emt 0:05:52]} 18. Qg4 {[%emt 0:08:26]} Nb6 {[%emt 0:11:56]} 19. Be4 {[%emt 0:05:31]} Qd7 {[%emt 0:02:03]} 20. Bxb7 {[%emt 0:10:18]} Qxb7 {[%emt 0:00:05]} 21. a4 {[%emt 0:02:08]} Nd7 {[%emt 0:05:34]} 22. Rf3 {[%emt 0:01:58]} Ra6 {[%emt 0:12:15]} 23. Nd1 {[%emt 0:02:27]} f5 {[%emt 0:12:19]} 24. exf6 {[%emt 0:02:15]} Nxf6 {[%emt 0:00:03]} 25. Qh3 {[%emt 0:00:47]} Ne4 {[%emt 0:01:57]} 26. Bxa5 {[%emt 0:15:58]} Rxa5 {[%emt 0:01:25]} 27. Qxe6 {[%emt 0:00:12]} Nc3 {[%emt 0:00:53]} 28. Nxc3 {[%emt 0:02:07]} dxc3 {[%emt 0:00:05]} 29. Rfe3 {[%emt 0:03:11]} Ra7 {[%emt 0:03:01]} 30. Qf6 {[%emt 0:03:59]} Rf8 {[%emt 0:05:12]} 31. Rxe7+ {[%emt 0:00:31]} Qxe7 {[%emt 0:00:06]} 32. Qxc3 {[%emt 0:01:13]} Rxf4 {[%emt 0:03:01]} 33. Rxe7+ {[%emt 0:00:19]} Rxe7 {[%emt 0:00:11]} 34. h3 {[%emt 0:00:36]} Rd4 {[%emt 0:05:59]} 35. Qf3 {[%emt 0:01:13]} Rd6 {[%emt 0:01:04]} 36. Qa8+ {[%emt 0:01:24]} Kf7 {[%emt 0:00:40]} 37. Qh8 {[%emt 0:00:18]} h5 {[%emt 0:00:29]} 38. Qc8 {[%emt 0:01:00]} Rb6 {[%emt 0:00:59]} 39. Qxc5 {[%emt 0:00:27]} Rxb3 {[%emt 0:00:16]} 40. a5 {[%emt 0:00:00]} Rb1+ {[%emt 0:00:00]} 41. Kh2 {[%emt 0:09:55]} Rbb7 {[%emt 0:21:26]} 42. a6 {[%emt 0:05:19]} Ra7 {[%emt 0:00:33]} 43. Qb6 {[%emt 0:00:56]} Kg7 {[%emt 0:03:06]} 44. Kg3 {[%emt 0:04:00]} Rf7 {[%emt 0:00:34]} 45. c5 {[%emt 0:01:42]} Kh7 {[%emt 0:00:51]} 46. c6 {[%emt 0:02:05]} Kg7 {[%emt 0:00:41]} 47. Qb7 {[%emt 0:01:02]} Kh7 {[%emt 0:01:41]} 48. Kh4 {[%emt 0:01:13]} Kh6 {[%emt 0:00:36]} 49. g4 {[%emt 0:03:37]} g5+ {[%emt 0:05:04]} 50. Kg3 {[%emt 0:00:05]} h4+ {[%emt 0:00:20]} 51. Kg2 {[%emt 0:00:27]} Kg6 {[%emt 0:00:44]} 52. Qb6 {[%emt 0:02:48]} Kh7 {[%emt 0:00:15]} 53. Qd8 {[%emt 0:01:18]} Rae7 {[%emt 0:00:41]} 54. Qd3+ {[%emt 0:01:33]} Kg7 {[%emt 0:00:44]} 55. Qb5 {[%emt 0:01:15]} Kg6 {[%emt 0:00:26]} 56. Qb1+ {[%emt 0:00:21]} Kg7 {[%emt 0:00:29]} 57. Qb2+ {[%emt 0:00:26]} Kh7 {[%emt 0:00:06]} 58. Qd2 {[%emt 0:00:42]} Kg6 {[%emt 0:00:13]} 59. Kg1 {[%emt 0:01:00]} Kh6 {[%emt 0:00:56]} 60. Qc3 {[%emt 0:01:03]} Kh7 {[%emt 0:00:16]} 61. Qa5 {[%emt 0:00:28]} Kg6 {[%emt 0:00:13]} 62. Qc3 {[%emt 0:00:34]} 1/2-1/2

[Event "Mitropa Cup Women 2019"]
[Site "Radenci"]
[Date "2019.05.31"]
[Round "5.15"]
[White "Hapala, Elisabeth"]
[Black "Hund, Sarah"]
[Result "1-0"]
[ECO "C65"]
[WhiteElo "2122"]
[BlackElo "2016"]
[Annotator "ChessBase"]
[PlyCount "123"]
[EventDate "2019.05.27"]
[EventType "team-tourn"]
[EventCountry "SLO"]
[SourceTitle "playchess.com"]
[Source "ChessBase"]
[SourceQuality "1"]
[WhiteTeam "Austria"]
[BlackTeam "Switzerland"]
[WhiteTeamCountry "AUT"]
[BlackTeamCountry "SUI"]
[TimeControl "40/5400+30:1800+30"]

1. e4 {[%emt 0:00:00]} e5 {[%emt 0:00:00]} 2. Nf3 {[%emt 0:00:00]} Nc6 {[%emt 0:00:00]} 3. Bb5 {[%emt 0:00:00]} Bc5 {[%emt 0:00:00]} 4. c3 {[%emt 0:01:14]} Nf6 {[%emt 0:00:23]} 5. O-O {[%emt 0:01:05]} O-O {[%emt 0:00:23]} 6. d4 {[%emt 0:01:22]} Bb6 {[%emt 0:00:29]} 7. Bg5 {[%emt 0:09:39]} d6 {[%emt 0:00:54]} 8. Qd3 {[%emt 0:01:11]} h6 {[%emt 0:01:41]} 9. Bh4 {[%emt 0:00:18]} g5 {[%emt 0:00:45]} 10. Bg3 {[%emt 0:16:14]} Nh5 {[%emt 0:01:45]} 11. Nbd2 {[%emt 0:11:17]} exd4 {[%emt 0:13:52]} 12. cxd4 {[%emt 0:04:26]} Nxg3 {[%emt 0:03:33]} 13. fxg3 {[%emt 0:05:50]} Ne5 {[%emt 0:07:51]} 14. Qc3 {[%emt 0:08:10]} c6 {[%emt 0:05:56]} 15. Ba4 {[%emt 0:01:14]} Nxf3+ {[%emt 0:04:25]} 16. Nxf3 {[%emt 0:03:44]} Qe7 {[%emt 0:02:21]} 17. Rae1 {[%emt 0:07:47]} Bg4 {[%emt 0:06:41]} 18. Kh1 {[%emt 0:02:12]} Rae8 {[%emt 0:02:28]} 19. Bc2 {[%emt 0:04:29]} Bh5 {[%emt 0:03:51]} 20. e5 {[%emt 0:05:04]} Bg6 {[%emt 0:06:11]} 21. Bxg6 {[%emt 0:06:32]} fxg6 {[%emt 0:00:15]} 22. Qd3 {[%emt 0:00:34]} Kg7 {[%emt 0:02:27]} 23. h3 {[%emt 0:04:27]} Bc7 {[%emt 0:02:29]} 24. exd6 {[%emt 0:03:10]} Qxd6 {[%emt 0:00:25]} 25. Ne5 {[%emt 0:00:09]} Rxf1+ {[%emt 0:04:02]} 26. Qxf1 {[%emt 0:00:04]} Qf8 {[%emt 0:00:46]} 27. Qd3 {[%emt 0:00:46]} Bxe5 {[%emt 0:01:42]} 28. dxe5 {[%emt 0:00:05]} Qf5 {[%emt 0:01:12]} 29. Qd6 {[%emt 0:00:33]} Re6 {[%emt 0:01:35]} 30. Qb8 {[%emt 0:00:45]} Re7 {[%emt 0:02:37]} 31. Qxa7 {[%emt 0:00:28]} Qd3 {[%emt 0:04:02]} 32. Qc5 {[%emt 0:01:38]} Re6 {[%emt 0:01:09]} 33. Qb4 {[%emt 0:00:39]} Qd7 {[%emt 0:00:50]} 34. a4 {[%emt 0:01:01]} Qe7 {[%emt 0:01:01]} 35. Qd4 {[%emt 0:00:21]} Kh7 {[%emt 0:03:59]} 36. b4 {[%emt 0:00:14]} h5 {[%emt 0:01:43]} 37. Kg1 {[%emt 0:00:39]} Kh6 {[%emt 0:00:54]} 38. Kh2 {[%emt 0:00:50]} Qe8 {[%emt 0:02:39]} 39. Re4 {[%emt 0:00:33]} Qe7 {[%emt 0:01:30]} 40. Re3 {[%emt 0:00:00]} Qe8 {[%emt 0:00:00]} 41. Re4 {[%emt 0:12:43]} Kh7 {[%emt 0:05:54]} 42. Qa7 {[%emt 0:04:21]} Qd7 {[%emt 0:02:18]} 43. Qb8 {[%emt 0:01:10]} Re8 {[%emt 0:04:08]} 44. e6 {[%emt 0:03:34]} Qe7 {[%emt 0:07:00]} 45. Qe5 {[%emt 0:00:31]} Kh6 {[%emt 0:01:14]} 46. Qd4 {[%emt 0:01:42]} Rd8 {[%emt 0:02:19]} 47. Qe3 {[%emt 0:00:31]} Kg7 {[%emt 0:01:54]} 48. Rd4 {[%emt 0:03:55]} h4 {[%emt 0:03:07]} 49. Qe5+ {[%emt 0:01:02]} Kg8 {[%emt 0:01:57]} 50. Rxd8+ {[%emt 0:01:15]} Qxd8 {[%emt 0:00:05]} 51. e7 {[%emt 0:00:45]} Qe8 {[%emt 0:00:07]} 52. Qe6+ {[%emt 0:00:17]} Kg7 {[%emt 0:00:23]} 53. gxh4 {[%emt 0:01:04]} gxh4 {[%emt 0:00:39]} 54. Kh1 {[%emt 0:00:24]} b6 {[%emt 0:02:12]} 55. Kg1 {[%emt 0:01:15]} c5 {[%emt 0:02:30]} 56. bxc5 {[%emt 0:01:59]} bxc5 {[%emt 0:00:06]} 57. a5 {[%emt 0:00:29]} c4 {[%emt 0:00:24]} 58. a6 {[%emt 0:00:12]} c3 {[%emt 0:00:23]} 59. Qe5+ {[%emt 0:00:56]} Kf7 {[%emt 0:03:04]} 60. Qxc3 {[%emt 0:00:44]} Qxe7 {[%emt 0:00:11]} 61. Qf3+ {[%emt 0:00:15]} Ke8 {[%emt 0:01:53]} 62. Qa8+ {[%emt 0:00:12]} 1-0

[Event "Mitropa Cup Women 2019"]
[Site "Radenci"]
[Date "2019.05.31"]
[Round "5.16"]
[White "Pellicoro, Nathalie"]
[Black "Schloffer, Jasmin-Denise"]
[Result "0-1"]
[ECO "C41"]
[WhiteElo "1893"]
[BlackElo "2133"]
[Annotator "ChessBase"]
[PlyCount "60"]
[EventDate "2019.05.27"]
[EventType "team-tourn"]
[EventCountry "SLO"]
[SourceTitle "playchess.com"]
[Source "ChessBase"]
[SourceQuality "1"]
[WhiteTeam "Switzerland"]
[BlackTeam "Austria"]
[WhiteTeamCountry "SUI"]
[BlackTeamCountry "AUT"]
[TimeControl "40/5400+30:1800+30"]

1. e4 {[%emt 0:00:00]} e5 {[%emt 0:00:00]} 2. Nf3 {[%emt 0:00:00]} d6 {[%emt 0:00:00]} 3. d4 {[%emt 0:00:43]} exd4 {[%emt 0:00:00]} 4. Nxd4 {[%emt 0:00:51]} Nf6 {[%emt 0:00:00]} 5. Nc3 {[%emt 0:03:22]} Be7 {[%emt 0:00:00]} 6. Be3 {[%emt 0:09:12]} O-O {[%emt 0:00:10]} 7. Qd2 {[%emt 0:02:29]} d5 {[%emt 0:03:09]} 8. exd5 {[%emt 0:05:26]} Nxd5 {[%emt 0:00:39]} 9. Nxd5 {[%emt 0:03:11]} Qxd5 {[%emt 0:00:06]} 10. Bd3 {[%emt 0:02:31]} Re8 {[%emt 0:09:26]} 11. O-O {[%emt 0:03:16]} c5 {[%emt 0:06:45]} 12. Nb5 {[%emt 0:03:43]} Qc6 {[%emt 0:00:07]} 13. c4 {[%emt 0:09:25]} Be6 {[%emt 0:04:31]} 14. Qc2 {[%emt 0:02:03]} g6 {[%emt 0:06:01]} 15. Bf4 {[%emt 0:02:01]} Na6 {[%emt 0:00:51]} 16. a3 {[%emt 0:01:14]} f5 {[%emt 0:10:25]} 17. Be5 {[%emt 0:02:50]} Bf8 {[%emt 0:04:32]} 18. Be2 {[%emt 0:07:44]} Bf7 {[%emt 0:02:21]} 19. Bg3 {[%emt 0:10:50]} Qe4 {[%emt 0:06:51]} 20. Qxe4 {[%emt 0:03:27]} Rxe4 {[%emt 0:01:36]} 21. Nc3 {[%emt 0:03:57]} Rd4 {[%emt 0:03:32]} 22. Rfd1 {[%emt 0:03:31]} Re8 {[%emt 0:05:48]} 23. Kf1 {[%emt 0:01:31]} f4 {[%emt 0:02:43]} 24. Bxf4 {[%emt 0:06:38]} Rxf4 {[%emt 0:00:25]} 25. b3 {[%emt 0:01:56]} Bg7 {[%emt 0:01:27]} 26. Rac1 {[%emt 0:00:11]} Bd4 {[%emt 0:00:46]} 27. f3 {[%emt 0:00:40]} Nc7 {[%emt 0:00:24]} 28. g3 {[%emt 0:01:18]} Rf6 {[%emt 0:00:41]} 29. b4 {[%emt 0:02:17]} b6 {[%emt 0:04:43]} 30. Re1 {[%emt 0:01:29]} Re3 {[%emt 0:01:25]} 0-1

[Event "Mitropa Cup Women 2019"]
[Site "Radenci"]
[Date "2019.06.01"]
[Round "6.1"]
[White "Gueci, Tea"]
[Black "Ragger, Anna-Christina"]
[Result "0-1"]
[ECO "B12"]
[WhiteElo "2251"]
[BlackElo "2272"]
[Annotator "ChessBase"]
[PlyCount "74"]
[EventDate "2019.05.27"]
[EventType "team-tourn"]
[EventCountry "SLO"]
[SourceTitle "playchess.com"]
[Source "ChessBase"]
[SourceQuality "1"]
[WhiteTeam "Italy"]
[BlackTeam "Austria"]
[WhiteTeamCountry "ITA"]
[BlackTeamCountry "AUT"]
[TimeControl "40/5400+30:1800+30"]

1. e4 {[%emt 0:00:00]} c6 {[%emt 0:00:00]} 2. d4 {[%emt 0:00:00]} d5 {[%emt 0:00:00]} 3. e5 {[%emt 0:00:00]} Bf5 {[%emt 0:00:00]} 4. Nd2 {[%emt 0:00:00]} e6 {[%emt 0:00:46]} 5. Nb3 {[%emt 0:00:00]} c5 {[%emt 0:03:07]} 6. dxc5 {[%emt 0:00:34]} Bxc5 {[%emt 0:03:31]} 7. Nxc5 {[%emt 0:00:27]} Qa5+ {[%emt 0:00:05]} 8. c3 {[%emt 0:00:42]} Qxc5 {[%emt 0:00:06]} 9. Nf3 {[%emt 0:00:41]} Qc7 {[%emt 0:07:32]} 10. Bb5+ {[%emt 0:02:24]} Nc6 {[%emt 0:01:01]} 11. O-O {[%emt 0:02:34]} Bg4 {[%emt 0:04:57]} 12. Re1 {[%emt 0:06:09]} Nge7 {[%emt 0:03:29]} 13. h3 {[%emt 0:03:09]} Bh5 {[%emt 0:13:26]} 14. Bf4 {[%emt 0:03:21]} h6 {[%emt 0:04:34]} 15. Bh2 {[%emt 0:04:44]} g5 {[%emt 0:04:01]} 16. Be2 {[%emt 0:08:17]} O-O-O {[%emt 0:03:36]} 17. Nd4 {[%emt 0:05:18]} Bxe2 {[%emt 0:00:16]} 18. Rxe2 {[%emt 0:01:08]} Nxd4 {[%emt 0:01:06]} 19. cxd4 {[%emt 0:00:45]} Kb8 {[%emt 0:05:47]} 20. f4 {[%emt 0:06:30]} Qb6 {[%emt 0:02:25]} 21. fxg5 {[%emt 0:03:56]} hxg5 {[%emt 0:00:29]} 22. Bg3 {[%emt 0:00:55]} Rdg8 {[%emt 0:07:19]} 23. Rc2 {[%emt 0:04:25]} g4 {[%emt 0:04:51]} 24. hxg4 {[%emt 0:03:05]} Rh7 {[%emt 0:00:08]} 25. Rac1 {[%emt 0:17:43]} Nc6 {[%emt 0:01:48]} 26. Rc5 {[%emt 0:06:42]} Rgh8 {[%emt 0:07:07]} 27. Qd2 {[%emt 0:05:03]} Nxd4 {[%emt 0:03:38]} 28. Kf2 {[%emt 0:08:40]} Nc6 {[%emt 0:00:32]} 29. a3 {[%emt 0:00:28]} a5 {[%emt 0:01:50]} 30. Kf3 {[%emt 0:03:42]} Rh1 {[%emt 0:03:19]} 31. R1c2 {[%emt 0:01:51]} Rf1+ {[%emt 0:02:16]} 32. Ke2 {[%emt 0:00:55]} Qa6+ {[%emt 0:00:32]} 33. Ke3 {[%emt 0:01:19]} Rhh1 {[%emt 0:04:06]} 34. Bf2 {[%emt 0:00:45]} Rd1 {[%emt 0:02:12]} 35. Qe2 {[%emt 0:00:37]} d4+ {[%emt 0:00:35]} 36. Kf3 {[%emt 0:00:33]} d3 {[%emt 0:00:28]} 37. Rxc6 {[%emt 0:00:30]} bxc6 {[%emt 0:01:34]} 0-1

[Event "Mitropa Cup Women 2019"]
[Site "Radenci"]
[Date "2019.06.01"]
[Round "6.2"]
[White "Hapala, Elisabeth"]
[Black "Santeramo, Alessia"]
[Result "0-1"]
[ECO "C88"]
[WhiteElo "2122"]
[BlackElo "2074"]
[Annotator "ChessBase"]
[PlyCount "94"]
[EventDate "2019.05.27"]
[EventType "team-tourn"]
[EventCountry "SLO"]
[SourceTitle "playchess.com"]
[Source "ChessBase"]
[SourceQuality "1"]
[WhiteTeam "Austria"]
[BlackTeam "Italy"]
[WhiteTeamCountry "AUT"]
[BlackTeamCountry "ITA"]
[TimeControl "40/5400+30:1800+30"]

1. e4 {[%emt 0:00:00]} e5 {[%emt 0:00:00]} 2. Nf3 {[%emt 0:00:00]} Nc6 {[%emt 0:00:00]} 3. Bb5 {[%emt 0:00:00]} a6 {[%emt 0:00:00]} 4. Ba4 {[%emt 0:00:00]} Nf6 {[%emt 0:00:03]} 5. O-O {[%emt 0:00:00]} Be7 {[%emt 0:00:05]} 6. Re1 {[%emt 0:00:00]} b5 {[%emt 0:00:06]} 7. Bb3 {[%emt 0:00:00]} O-O {[%emt 0:00:06]} 8. h3 {[%emt 0:00:15]} Bb7 {[%emt 0:00:08]} 9. d3 {[%emt 0:00:20]} d5 {[%emt 0:00:08]} 10. exd5 {[%emt 0:02:29]} Nxd5 {[%emt 0:00:08]} 11. Nbd2 {[%emt 0:06:10]} Qd7 {[%emt 0:00:17]} 12. Nf1 {[%emt 0:11:02]} Bf6 {[%emt 0:00:18]} 13. Ng3 {[%emt 0:01:44]} Rfe8 {[%emt 0:22:28]} 14. Bd2 {[%emt 0:09:52]} Nf4 {[%emt 0:05:03]} 15. Ne4 {[%emt 0:03:59]} Qf5 {[%emt 0:02:18]} 16. Bxf4 {[%emt 0:25:05]} exf4 {[%emt 0:08:50]} 17. c3 {[%emt 0:00:21]} Ne5 {[%emt 0:11:16]} 18. Nxf6+ {[%emt 0:08:29]} Qxf6 {[%emt 0:00:15]} 19. Nxe5 {[%emt 0:00:08]} Rxe5 {[%emt 0:00:12]} 20. Rxe5 {[%emt 0:00:34]} Qxe5 {[%emt 0:00:02]} 21. d4 {[%emt 0:00:31]} Qe4 {[%emt 0:01:50]} 22. f3 {[%emt 0:05:43]} Qe3+ {[%emt 0:00:49]} 23. Kf1 {[%emt 0:03:28]} Re8 {[%emt 0:01:41]} 24. Bc2 {[%emt 0:01:54]} Bd5 {[%emt 0:02:01]} 25. Bd3 {[%emt 0:00:48]} c5 {[%emt 0:12:01]} 26. Qe2 {[%emt 0:06:30]} c4 {[%emt 0:03:38]} 27. Qxe3 {[%emt 0:00:26]} fxe3 {[%emt 0:05:48]} 28. Bc2 {[%emt 0:01:16]} a5 {[%emt 0:00:26]} 29. a3 {[%emt 0:04:30]} g5 {[%emt 0:02:38]} 30. Ke2 {[%emt 0:00:30]} h5 {[%emt 0:00:39]} 31. g3 {[%emt 0:02:45]} Be6 {[%emt 0:02:20]} 32. Rh1 {[%emt 0:00:24]} Kg7 {[%emt 0:06:07]} 33. Kxe3 {[%emt 0:03:24]} Bxh3+ {[%emt 0:03:32]} 34. Kf2 {[%emt 0:00:07]} g4 {[%emt 0:00:54]} 35. f4 {[%emt 0:02:14]} h4 {[%emt 0:00:59]} 36. gxh4 {[%emt 0:01:08]} Kh6 {[%emt 0:00:00]} 37. Re1 {[%emt 0:01:42]} g3+ {[%emt 0:00:09]} 38. Kxg3 {[%emt 0:00:23]} Rxe1 {[%emt 0:00:02]} 39. Kxh3 {[%emt 0:00:05]} Re2 {[%emt 0:00:10]} 40. Bf5 {[%emt 0:00:00]} Rxb2 {[%emt 0:00:00]} 41. d5 {[%emt 0:16:41]} Rb3 {[%emt 0:03:36]} 42. d6 {[%emt 0:01:06]} Rxc3+ {[%emt 0:00:06]} 43. Kg4 {[%emt 0:03:11]} Rc1 {[%emt 0:00:20]} 44. Kf3 {[%emt 0:01:39]} Rd1 {[%emt 0:00:14]} 45. d7 {[%emt 0:00:12]} b4 {[%emt 0:00:48]} 46. axb4 {[%emt 0:00:05]} axb4 {[%emt 0:00:07]} 47. Ke2 {[%emt 0:00:18]} Rd6 {[%emt 0:00:16]} 0-1

[Event "Mitropa Cup Women 2019"]
[Site "Radenci"]
[Date "2019.06.01"]
[Round "6.3"]
[White "Palma, Maria"]
[Black "Schloffer, Jasmin-Denise"]
[Result "1-0"]
[ECO "E15"]
[WhiteElo "2018"]
[BlackElo "2133"]
[Annotator "ChessBase"]
[PlyCount "125"]
[EventDate "2019.05.27"]
[EventType "team-tourn"]
[EventCountry "SLO"]
[SourceTitle "playchess.com"]
[Source "ChessBase"]
[SourceQuality "1"]
[WhiteTeam "Italy"]
[BlackTeam "Austria"]
[WhiteTeamCountry "ITA"]
[BlackTeamCountry "AUT"]
[TimeControl "40/5400+30:1800+30"]

1. d4 {[%emt 0:00:00]} Nf6 {[%emt 0:00:00]} 2. c4 {[%emt 0:00:00]} e6 {[%emt 0:00:00]} 3. Nf3 {[%emt 0:00:00]} b6 {[%emt 0:00:00]} 4. g3 {[%emt 0:00:05]} Ba6 {[%emt 0:00:00]} 5. Qa4 {[%emt 0:00:36]} Bb7 {[%emt 0:00:00]} 6. Bg2 {[%emt 0:00:06]} c5 {[%emt 0:00:08]} 7. dxc5 {[%emt 0:00:59]} bxc5 {[%emt 0:00:06]} 8. O-O {[%emt 0:00:20]} Be7 {[%emt 0:00:06]} 9. Rd1 {[%emt 0:00:26]} O-O {[%emt 0:00:10]} 10. Nc3 {[%emt 0:00:16]} d6 {[%emt 0:00:22]} 11. Bf4 {[%emt 0:04:06]} Qb6 {[%emt 0:00:07]} 12. Rab1 {[%emt 0:00:29]} Rd8 {[%emt 0:07:28]} 13. b4 {[%emt 0:06:28]} Bc6 {[%emt 0:06:13]} 14. b5 {[%emt 0:09:53]} Bb7 {[%emt 0:00:55]} 15. Qc2 {[%emt 0:03:29]} Nbd7 {[%emt 0:05:28]} 16. a4 {[%emt 0:07:11]} Qc7 {[%emt 0:06:57]} 17. a5 {[%emt 0:05:09]} Qxa5 {[%emt 0:09:03]} 18. Bxd6 {[%emt 0:05:21]} Bxd6 {[%emt 0:00:06]} 19. Rxd6 {[%emt 0:00:08]} Nb6 {[%emt 0:04:53]} 20. Rxd8+ {[%emt 0:06:32]} Rxd8 {[%emt 0:00:13]} 21. Ne5 {[%emt 0:01:52]} Bxg2 {[%emt 0:13:00]} 22. Kxg2 {[%emt 0:01:01]} Rd6 {[%emt 0:02:14]} 23. Rb2 {[%emt 0:07:03]} Nc8 {[%emt 0:00:53]} 24. Nc6 {[%emt 0:06:39]} Qc7 {[%emt 0:00:55]} 25. Ra2 {[%emt 0:02:07]} h6 {[%emt 0:05:23]} 26. Qc1 {[%emt 0:04:06]} Rd7 {[%emt 0:03:31]} 27. Qe3 {[%emt 0:05:41]} Qd6 {[%emt 0:05:00]} 28. Na4 {[%emt 0:02:12]} Ne7 {[%emt 0:07:56]} 29. Nxc5 {[%emt 0:06:50]} Rc7 {[%emt 0:00:15]} 30. Na6 {[%emt 0:03:48]} Rxc6 {[%emt 0:03:51]} 31. bxc6 {[%emt 0:00:08]} Qxc6+ {[%emt 0:00:04]} 32. f3 {[%emt 0:05:39]} Qxc4 {[%emt 0:00:10]} 33. Qa3 {[%emt 0:01:04]} Ned5 {[%emt 0:02:33]} 34. Rd2 {[%emt 0:03:24]} Nc3 {[%emt 0:04:51]} 35. Qb4 {[%emt 0:01:25]} Qxa6 {[%emt 0:02:27]} 36. Qxc3 {[%emt 0:00:02]} Nd5 {[%emt 0:00:38]} 37. Qd4 {[%emt 0:01:38]} Qa3 {[%emt 0:01:47]} 38. e4 {[%emt 0:01:20]} Nf6 {[%emt 0:00:05]} 39. Qf2 {[%emt 0:00:27]} a5 {[%emt 0:00:59]} 40. Ra2 {[%emt 0:00:00]} Qb4 {[%emt 0:00:00]} 41. Qd2 {[%emt 0:02:44]} Qxd2+ {[%emt 0:02:55]} 42. Rxd2 {[%emt 0:03:34]} g5 {[%emt 0:00:15]} 43. Ra2 {[%emt 0:02:31]} Kg7 {[%emt 0:02:02]} 44. Rxa5 {[%emt 0:00:07]} Kg6 {[%emt 0:00:30]} 45. Ra4 {[%emt 0:05:24]} Kg7 {[%emt 0:02:29]} 46. Kf2 {[%emt 0:00:38]} Kg6 {[%emt 0:02:20]} 47. Ke3 {[%emt 0:00:43]} Nd7 {[%emt 0:01:59]} 48. f4 {[%emt 0:01:12]} gxf4+ {[%emt 0:00:08]} 49. gxf4 {[%emt 0:02:33]} Nf6 {[%emt 0:00:10]} 50. Ra2 {[%emt 0:00:33]} h5 {[%emt 0:07:04]} 51. Rg2+ {[%emt 0:01:26]} Kh6 {[%emt 0:00:13]} 52. Kd4 {[%emt 0:00:35]} Nd7 {[%emt 0:00:32]} 53. h3 {[%emt 0:02:21]} Kh7 {[%emt 0:03:16]} 54. f5 {[%emt 0:01:21]} Kh6 {[%emt 0:00:48]} 55. fxe6 {[%emt 0:00:27]} fxe6 {[%emt 0:00:06]} 56. e5 {[%emt 0:05:56]} Nb6 {[%emt 0:01:50]} 57. Kc5 {[%emt 0:00:57]} Nd5 {[%emt 0:00:06]} 58. Kd6 {[%emt 0:00:19]} Ne3 {[%emt 0:02:59]} 59. Rg1 {[%emt 0:00:59]} Nd5 {[%emt 0:00:12]} 60. Kxe6 {[%emt 0:00:13]} Nf4+ {[%emt 0:00:05]} 61. Kf5 {[%emt 0:01:27]} Nxh3 {[%emt 0:00:19]} 62. Rg2 {[%emt 0:00:18]} h4 {[%emt 0:00:46]} 63. e6 {[%emt 0:00:22]} 1-0

[Event "Mitropa Cup Women 2019"]
[Site "Radenci"]
[Date "2019.06.01"]
[Round "6.4"]
[White "Froewis, Annika"]
[Black "Andolfatto, Maria"]
[Result "1-0"]
[ECO "C47"]
[WhiteElo "2089"]
[BlackElo "2041"]
[Annotator "NA"]
[PlyCount "107"]
[EventDate "2019.05.27"]
[EventType "team-tourn"]
[EventCountry "SLO"]
[SourceTitle "playchess.com"]
[Source "ChessBase"]
[SourceQuality "1"]
[WhiteTeam "Austria"]
[BlackTeam "Italy"]
[WhiteTeamCountry "AUT"]
[BlackTeamCountry "ITA"]
[TimeControl "40/5400+30:1800+30"]

1. e4 {[%emt 0:00:00]} e5 {[%emt 0:00:00]} 2. Nf3 {[%emt 0:00:00]} Nf6 {[%emt 0:00:00]} 3. Nc3 {[%emt 0:00:00]} Nc6 {[%emt 0:00:00]} 4. d4 {[%emt 0:00:06]} exd4 {[%emt 0:00:13]} 5. Nxd4 {[%emt 0:00:02]} Bb4 {[%emt 0:00:15]} 6. Nxc6 {[%emt 0:00:13]} bxc6 {[%emt 0:00:08]} 7. Bd3 {[%emt 0:00:12]} O-O {[%emt 0:00:23]} 8. O-O {[%emt 0:00:18]} d5 {[%emt 0:00:08]} 9. exd5 {[%emt 0:00:16]} cxd5 {[%emt 0:00:08]} 10. h3 {[%emt 0:00:14]} Re8 {[%emt 0:00:13]} 11. Qf3 {[%emt 0:01:15]} c6 {[%emt 0:00:39]} 12. Bf4 {[%emt 0:01:22]} Bd6 {[%emt 0:02:22]} 13. Ne2 {[%emt 0:01:57]} Be5 {[%emt 0:14:28]} 14. Bxe5 {[%emt 0:19:26]} Rxe5 {[%emt 0:00:11]} 15. Qg3 {[%emt 0:05:34]} Qe8 {[%emt 0:08:03]} 16. Nd4 {[%emt 0:07:41]} Bd7 {[%emt 0:12:24]} 17. b3 {[%emt 0:08:59]} Ne4 {[%emt 0:05:47]} 18. Bxe4 {[%emt 0:06:24]} Rxe4 {[%emt 0:01:00]} 19. Nf3 {[%emt 0:01:13]} Bf5 {[%emt 0:10:30]} 20. Qd6 {[%emt 0:06:23]} Rd8 {[%emt 0:07:39]} 21. Qc7 {[%emt 0:04:04]} Qd7 {[%emt 0:04:08]} 22. Qxd7 {[%emt 0:00:34]} Rxd7 {[%emt 0:03:48]} 23. Rfe1 {[%emt 0:02:41]} Rde7 {[%emt 0:01:32]} 24. Rxe4 {[%emt 0:01:16]} Bxe4 {[%emt 0:01:33]} 25. Ne1 {[%emt 0:12:19]} c5 {[%emt 0:04:44]} 26. Rd1 {[%emt 0:01:45]} Kf8 {[%emt 0:04:32]} 27. Kf1 {[%emt 0:03:40]} Rd7 {[%emt 0:01:56]} 28. Nd3 {[%emt 0:02:17]} Rc7 {[%emt 0:03:51]} 29. Rd2 {[%emt 0:02:51]} a5 {[%emt 0:08:24]} 30. f3 {[%emt 0:05:19]} Bf5 {[%emt 0:00:52]} 31. Kf2 {[%emt 0:01:54]} c4 {[%emt 0:04:30]} 32. bxc4 {[%emt 0:02:45]} dxc4 {[%emt 0:00:13]} 33. Nf4 {[%emt 0:00:48]} c3 {[%emt 0:00:58]} 34. Re2 {[%emt 0:00:34]} Rd7 {[%emt 0:00:52]} 35. g4 {[%emt 0:00:23]} Bg6 {[%emt 0:00:26]} 36. h4 {[%emt 0:00:46]} f6 {[%emt 0:00:37]} 37. Ne6+ {[%emt 0:00:20]} Kg8 {[%emt 0:00:31]} 38. Nc5 {[%emt 0:02:22]} Rc7 {[%emt 0:00:21]} 39. Ne4 {[%emt 0:00:39]} Bf7 {[%emt 0:00:36]} 40. a3 {[%emt 0:00:00]} Bc4 {[%emt 0:00:00]} 41. Re3 {[%emt 0:01:06]} Bb3 {[%emt 0:05:03]} 42. Nxc3 {[%emt 0:16:28]} Bxc2 {[%emt 0:01:48]} 43. Nb5 {[%emt 0:01:39]} Rd7 {[%emt 0:09:53]} 44. Rc3 {[%emt 0:04:28]} Bd3 {[%emt 0:10:42]} 45. Rc8+ {[%emt 0:01:13]} Kf7 {[%emt 0:00:16]} 46. Nc3 {[%emt 0:00:19]} Ra7 {[%emt 0:01:45]} 47. Ke3 {[%emt 0:00:39]} Bf1 {[%emt 0:01:22]} 48. a4 {[%emt 0:01:21]} Kg6 {[%emt 0:01:27]} 49. Rc5 {[%emt 0:01:59]} Ra6 {[%emt 0:02:20]} 50. Nd5 {[%emt 0:02:17]} Ra7 {[%emt 0:00:46]} 51. Kf2 {[%emt 0:00:30]} Ba6 {[%emt 0:00:40]} 52. Rxa5 {[%emt 0:00:06]} Rd7 {[%emt 0:00:32]} 53. Nf4+ {[%emt 0:00:13]} Kf7 {[%emt 0:00:03]} 54. Rxa6 {[%emt 0:00:07]} 1-0